[Event "Snabb-SM för veteraner, 50+ 2019"]
[Site "Schackcentrum, Vegagatan 20, Gothenburg, Sweden"]
[Date "2019.10.05"]
[Round "4.6"]
[White "Sigeman, Johan"]
[Black "Hautajarvi, Jukka"]
[Result "1/2-1/2"]
[TimeControl "15 minutes + 10 seconds per move from move one"]
[WhiteFideId "1705601"]
[BlackFideId "1716190"]
[WhiteElo "2100"]
[BlackElo "2145"]

1. c4 {[%clk 00:15:18]} {[%emt 00:00:01]} Nf6 {[%clk 00:15:18]} {[%emt
00:00:02]} 2. Nc3 {[%clk 00:15:26]} {[%emt 00:00:02]} e6 {[%clk 00:15:07]}
{[%emt 00:00:21]} 3. e4 {[%clk 00:15:32]} {[%emt 00:00:04]} d5 {[%clk
00:15:15]} {[%emt 00:00:02]} 4. e5 {[%clk 00:15:32]} {[%emt 00:00:10]} Ne4
{[%clk 00:15:23]} {[%emt 00:00:02]} 5. Nf3 {[%clk 00:15:22]} {[%emt 00:00:20]}
Nxc3 {[%clk 00:15:13]} {[%emt 00:00:20]} 6. bxc3 {[%clk 00:14:51]} {[%emt
00:00:42]} c5 {[%clk 00:14:15]} {[%emt 00:01:08]} 7. d4 {[%clk 00:14:17]}
{[%emt 00:00:44]} Nc6 {[%clk 00:14:11]} {[%emt 00:00:14]} 8. Be2 {[%clk
00:13:39]} {[%emt 00:00:49]} Be7 {[%clk 00:11:15]} {[%emt 00:03:05]} 9. O-O
{[%clk 00:13:33]} {[%emt 00:00:17]} O-O {[%clk 00:11:18]} {[%emt 00:00:07]} 10.
Rb1 {[%clk 00:11:41]} {[%emt 00:02:01]} b6 {[%clk 00:11:25]} {[%emt 00:00:04]}
11. Be3 {[%clk 00:11:34]} {[%emt 00:00:17]} cxd4 {[%clk 00:11:04]} {[%emt
00:00:30]} 12. cxd4 {[%clk 00:11:35]} {[%emt 00:00:09]} dxc4 {[%clk 00:11:11]}
{[%emt 00:00:03]} 13. Bxc4 {[%clk 00:11:37]} {[%emt 00:00:08]} Nb4 {[%clk
00:11:04]} {[%emt 00:00:17]} 14. Qd2 {[%clk 00:10:21]} {[%emt 00:01:26]} Nd5
{[%clk 00:11:12]} {[%emt 00:00:02]} 15. Bg5 {[%clk 00:10:22]} {[%emt 00:00:09]}
Bb7 {[%clk 00:11:17]} {[%emt 00:00:05]} 16. Bd3 {[%clk 00:09:27]} {[%emt
00:01:06]} h6 {[%clk 00:10:34]} {[%emt 00:00:52]} 17. Bxh6 {[%clk 00:08:45]}
{[%emt 00:00:52]} gxh6 {[%clk 00:10:01]} {[%emt 00:00:44]} 18. Qxh6 {[%clk
00:08:48]} {[%emt 00:00:06]} f5 {[%clk 00:09:53]} {[%emt 00:00:18]} 19. Qg6+
{[%clk 00:06:29]} {[%emt 00:02:40]} Kh8 {[%clk 00:10:11]} {[%emt 00:00:01]} 20.
Qh6+ {[%clk 00:05:45]} {[%emt 00:00:55]} Kg8 {[%clk 00:10:20]} 21. Qg6+ 1/2-1/2

[Event "Snabb-SM för veteraner, 50+ 2019"]
[Site "Schackcentrum, Vegagatan 20, Gothenburg, Sweden"]
[Date "2019.10.05"]
[Round "4.8"]
[White "Svensson, Sven"]
[Black "Naslund, Mikael"]
[Result "1-0"]
[TimeControl "15 minutes + 10 seconds per move from move one"]
[BlackTitle "FM"]
[WhiteFideId "1709240"]
[BlackFideId "1708260"]
[WhiteElo "2158"]
[BlackElo "2076"]

1. d4 {[%clk 00:15:17]} {[%emt 00:00:02]} Nf6 {[%clk 00:15:18]} {[%emt
00:00:02]} 2. c4 {[%clk 00:15:26]} {[%emt 00:00:02]} e6 {[%clk 00:15:22]}
{[%emt 00:00:07]} 3. Nc3 {[%clk 00:15:34]} {[%emt 00:00:02]} Bb4 {[%clk
00:15:30]} {[%emt 00:00:02]} 4. Qc2 {[%clk 00:15:42]} {[%emt 00:00:01]} d5
{[%clk 00:15:26]} {[%emt 00:00:14]} 5. a3 {[%clk 00:15:45]} {[%emt 00:00:08]}
Bxc3+ {[%clk 00:15:11]} {[%emt 00:00:25]} 6. Qxc3 {[%clk 00:15:52]} {[%emt
00:00:02]} O-O {[%clk 00:15:11]} {[%emt 00:00:10]} 7. e3 {[%clk 00:15:39]}
{[%emt 00:00:23]} b6 {[%clk 00:14:43]} {[%emt 00:00:38]} 8. Nh3 {[%clk
00:15:24]} {[%emt 00:00:24]} Bb7 {[%clk 00:14:30]} {[%emt 00:00:24]} 9. f3
{[%clk 00:15:23]} {[%emt 00:00:11]} Nbd7 {[%clk 00:13:24]} {[%emt 00:01:17]} 10.
Be2 {[%clk 00:14:09]} {[%emt 00:01:24]} c5 {[%clk 00:13:25]} {[%emt 00:00:09]}
11. O-O {[%clk 00:14:04]} {[%emt 00:00:15]} Rc8 {[%clk 00:13:07]} {[%emt
00:00:27]} 12. b3 {[%clk 00:13:27]} {[%emt 00:00:47]} a6 {[%clk 00:11:25]}
{[%emt 00:01:53]} 13. Bb2 {[%clk 00:11:15]} {[%emt 00:02:21]} Qe7 {[%clk
00:11:26]} {[%emt 00:00:08]} 14. Rac1 {[%clk 00:10:52]} {[%emt 00:00:34]} Rfd8
{[%clk 00:11:13]} {[%emt 00:00:23]} 15. Rfd1 {[%clk 00:10:59]} {[%emt
00:00:04]} cxd4 {[%clk 00:10:53]} {[%emt 00:00:29]} 16. exd4 {[%clk 00:10:33]}
{[%emt 00:00:36]} Nf8 {[%clk 00:09:34]} {[%emt 00:01:29]} 17. Qe3 {[%clk
00:09:44]} {[%emt 00:00:59]} Ng6 {[%clk 00:09:13]} {[%emt 00:00:32]} 18. Nf2
{[%clk 00:08:24]} {[%emt 00:01:29]} Nh4 {[%clk 00:08:07]} {[%emt 00:01:16]} 19.
Bd3 {[%clk 00:08:07]} {[%emt 00:00:27]} dxc4 {[%clk 00:07:46]} {[%emt
00:00:31]} 20. bxc4 {[%clk 00:08:06]} {[%emt 00:00:11]} Ng6 {[%clk 00:06:27]}
{[%emt 00:01:29]} 21. Ne4 {[%clk 00:06:49]} {[%emt 00:01:27]} Nh5 {[%clk
00:06:10]} {[%emt 00:00:27]} 22. g3 {[%clk 00:04:58]} {[%emt 00:02:02]} Re8
{[%clk 00:05:06]} {[%emt 00:01:14]} 23. Nf2 {[%clk 00:03:43]} {[%emt 00:01:25]}
Qc7 {[%clk 00:04:52]} {[%emt 00:00:24]} 24. Be4 {[%clk 00:03:29]} {[%emt
00:00:23]} Bxe4 {[%clk 00:04:34]} {[%emt 00:00:29]} 25. fxe4 {[%clk 00:03:28]}
{[%emt 00:00:11]} e5 {[%clk 00:04:13]} {[%emt 00:00:30]} 26. d5 {[%clk
00:03:32]} {[%emt 00:00:07]} Nf6 {[%clk 00:04:14]} {[%emt 00:00:09]} 27. Nd3
{[%clk 00:03:27]} {[%emt 00:00:16]} Nd7 {[%clk 00:04:19]} {[%emt 00:00:05]} 28.
Rc2 {[%clk 00:01:05]} {[%emt 00:02:31]} f6 {[%clk 00:04:18]} {[%emt 00:00:11]}
29. Kg2 {[%clk 00:01:13]} {[%emt 00:00:02]} Ngf8 {[%clk 00:04:17]} {[%emt
00:00:11]} 30. Bc1 {[%clk 00:01:04]} {[%emt 00:00:18]} Nc5 {[%clk 00:04:06]}
{[%emt 00:00:22]} 31. Nb4 {[%clk 00:01:01]} {[%emt 00:00:13]} Red8 {[%clk
00:03:43]} {[%emt 00:00:33]} 32. Nc6 {[%clk 00:00:30]} {[%emt 00:00:41]} Qxc6
{[%clk 00:03:06]} {[%emt 00:00:47]} 33. dxc6 {[%clk 00:00:38]} {[%emt
00:00:03]} Rxd1 {[%clk 00:03:14]} {[%emt 00:00:01]} 34. Qe2 {[%clk 00:00:34]}
{[%emt 00:00:14]} Rd6 {[%clk 00:03:16]} {[%emt 00:00:07]} 35. Be3 {[%clk
00:00:28]} {[%emt 00:00:17]} Nfe6 {[%clk 00:03:18]} {[%emt 00:00:08]} 36. Bf2
{[%clk 00:00:31]} {[%emt 00:00:07]} Rcxc6 {[%clk 00:03:03]} {[%emt 00:00:25]}
37. Rd2 {[%clk 00:00:40]} {[%emt 00:00:02]} Nb3 {[%clk 00:03:01]} {[%emt
00:00:11]} 38. Rxd6 {[%clk 00:00:45]} {[%emt 00:00:05]} Rxd6 {[%clk 00:03:10]}
{[%emt 00:00:01]} 39. c5 {[%clk 00:00:45]} {[%emt 00:00:09]} Nbxc5 {[%clk
00:03:17]} {[%emt 00:00:04]} 40. Qc4 {[%clk 00:00:45]} {[%emt 00:00:09]} Kf8
{[%clk 00:03:08]} {[%emt 00:00:21]} 41. a4 {[%clk 00:00:53]} {[%emt 00:00:01]}
Rd2 {[%clk 00:02:55]} {[%emt 00:00:22]} 42. Kf1 {[%clk 00:00:44]} {[%emt
00:00:20]} Nd4 {[%clk 00:02:47]} {[%emt 00:00:18]} 43. Qb4 {[%clk 00:00:49]}
{[%emt 00:00:04]} Rd1+ {[%clk 00:01:27]} {[%emt 00:01:31]} 44. Kg2 {[%clk
00:00:57]} {[%emt 00:00:01]} Kf7 {[%clk 00:00:47]} {[%emt 00:00:52]} 45. Qxb6
{[%clk 00:01:06]} {[%emt 00:00:01]} Nce6 {[%clk 00:00:45]} {[%emt 00:00:12]} 46.
Qxa6 {[%clk 00:01:09]} {[%emt 00:00:06]} Rd2 {[%clk 00:00:53]} {[%emt
00:00:02]} 47. a5 {[%clk 00:01:15]} {[%emt 00:00:04]} Kg6 {[%clk 00:00:55]}
{[%emt 00:00:08]} 48. Qa8 {[%clk 00:01:14]} {[%emt 00:00:11]} h5 {[%clk
00:00:52]} {[%emt 00:00:12]} 49. Kf1 {[%clk 00:01:19]} {[%emt 00:00:05]} Rd1+
{[%clk 00:01:01]} {[%emt 00:00:02]} 50. Kg2 {[%clk 00:01:26]} {[%emt 00:00:03]}
h4 {[%clk 00:01:10]} {[%emt 00:00:02]} 51. a6 {[%clk 00:01:30]} {[%emt
00:00:06]} Rd2 {[%clk 00:00:59]} {[%emt 00:00:21]} 52. Qe8+ {[%clk 00:00:59]}
{[%emt 00:00:40]} Kg5 {[%clk 00:00:36]} {[%emt 00:00:33]} 53. gxh4+ {[%clk
00:00:36]} {[%emt 00:00:33]} Kh6 {[%clk 00:00:41]} {[%emt 00:00:05]} 54. Qh8+
{[%clk 00:00:26]} {[%emt 00:00:19]} Kg6 {[%clk 00:00:46]} {[%emt 00:00:06]} 55.
h5+ {[%clk 00:00:34]} {[%emt 00:00:02]} Kg5 {[%clk 00:00:54]} {[%emt 00:00:02]}
56. Kf1 {[%clk 00:00:36]} {[%emt 00:00:09]} Rd1+ {[%clk 00:00:28]} {[%emt
00:00:35]} 57. Kg2 {[%clk 00:00:43]} {[%emt 00:00:03]} Nf4+ {[%clk 00:00:30]}
{[%emt 00:00:08]} 58. Kg3 {[%clk 00:00:41]} {[%emt 00:00:11]} Rd3+ {[%clk
00:00:39]} {[%emt 00:00:02]} 59. Be3 {[%clk 00:00:50]} Rxe3+ {[%clk 00:00:47]}
{[%emt 00:00:01]} 60. Kf2 {[%clk 00:00:59]} {[%emt 00:00:02]} Re2+ {[%clk
00:00:32]} {[%emt 00:00:25]} 61. Kf1 {[%clk 00:01:08]} Nf3 {[%clk 00:00:12]}
{[%emt 00:00:31]} 62. Qxg7+ {[%clk 00:01:17]} {[%emt 00:00:02]} Kh4 {[%clk
00:00:21]} 63. Qg3+ {[%clk 00:01:23]} {[%emt 00:00:04]} Kxh5 {[%clk 00:00:30]}
64. Qxf3+ {[%clk 00:01:31]} 1-0

[Event "Snabb-SM för veteraner, 50+ 2019"]
[Site "Schackcentrum, Vegagatan 20, Gothenburg, Sweden"]
[Date "2019.10.05"]
[Round "4.9"]
[White "Ansner, Bjorn"]
[Black "Frisk, Hans"]
[Result "1-0"]
[TimeControl "15 minutes + 10 seconds per move from move one"]
[WhiteFideId "1702769"]
[BlackFideId "1708570"]
[WhiteElo "1934"]
[BlackElo "1948"]

1. d4 {[%clk 00:15:17]} {[%emt 00:00:01]} Nf6 {[%clk 00:15:18]} {[%emt
00:00:03]} 2. c4 {[%clk 00:15:23]} {[%emt 00:00:05]} e6 {[%clk 00:15:27]}
{[%emt 00:00:02]} 3. Nc3 {[%clk 00:15:29]} {[%emt 00:00:03]} Bb4 {[%clk
00:15:36]} {[%emt 00:00:02]} 4. e3 {[%clk 00:15:35]} {[%emt 00:00:03]} O-O
{[%clk 00:15:29]} {[%emt 00:00:15]} 5. Nge2 {[%clk 00:14:46]} {[%emt 00:02:56]}
Ne4 6. Qc2 {[%emt 00:02:32]} d5 {[%emt 00:00:07]} 7. a3 {[%clk 00:14:37]}
{[%emt 00:00:14]} Nxc3 {[%clk 00:10:07]} {[%emt 00:01:32]} 8. Nxc3 {[%clk
00:14:15]} {[%emt 00:00:32]} Bxc3+ {[%clk 00:09:34]} {[%emt 00:00:44]} 9. bxc3
{[%clk 00:13:18]} {[%emt 00:01:07]} b6 {[%clk 00:09:10]} {[%emt 00:00:34]} 10.
Bd3 {[%clk 00:12:22]} {[%emt 00:01:05]} g6 {[%clk 00:08:34]} {[%emt 00:00:47]}
11. O-O {[%clk 00:12:12]} {[%emt 00:00:19]} Bb7 {[%clk 00:07:05]} {[%emt
00:01:39]} 12. e4 {[%clk 00:10:35]} {[%emt 00:01:46]} dxc4 {[%clk 00:06:23]}
{[%emt 00:00:53]} 13. Bxc4 {[%clk 00:10:31]} {[%emt 00:00:14]} Qh4 {[%clk
00:06:12]} {[%emt 00:00:20]} 14. f3 {[%clk 00:08:09]} {[%emt 00:02:33]} Nd7
{[%clk 00:05:49]} {[%emt 00:00:33]} 15. Be3 {[%clk 00:07:45]} {[%emt 00:00:33]}
Rac8 {[%clk 00:04:56]} {[%emt 00:01:04]} 16. Rad1 {[%clk 00:05:54]} {[%emt
00:02:00]} c5 {[%clk 00:03:44]} {[%emt 00:01:23]} 17. Qb3 {[%clk 00:03:45]}
{[%emt 00:02:19]} cxd4 {[%clk 00:02:24]} {[%emt 00:01:30]} 18. cxd4 {[%clk
00:03:51]} {[%emt 00:00:04]} Rfe8 {[%clk 00:02:01]} {[%emt 00:00:32]} 19. a4
{[%clk 00:03:51]} {[%emt 00:00:11]} Qh5 {[%clk 00:01:17]} {[%emt 00:00:54]} 20.
Bb5 {[%clk 00:03:00]} {[%emt 00:01:01]} Red8 {[%clk 00:01:10]} {[%emt
00:00:17]} 21. Rc1 {[%clk 00:02:21]} {[%emt 00:00:50]} Nf6 {[%clk 00:00:58]}
{[%emt 00:00:21]} 22. Qd3 {[%clk 00:01:45]} {[%emt 00:00:46]} Rxc1 {[%clk
00:00:42]} {[%emt 00:00:26]} 23. Rxc1 {[%clk 00:01:54]} {[%emt 00:00:02]} e5
{[%clk 00:00:23]} {[%emt 00:00:29]} 24. d5 {[%emt 00:00:12]} Ne8 {[%clk
00:00:26]} {[%emt 00:00:05]} 25. Bxe8 {[%clk 00:01:45]} {[%emt 00:00:18]} Rxe8
{[%clk 00:00:36]} {[%emt 00:00:01]} 26. Rc7 {[%clk 00:01:50]} {[%emt 00:00:05]}
Bc8 {[%clk 00:00:23]} {[%emt 00:00:23]} 27. Qc4 {[%clk 00:01:51]} {[%emt
00:00:08]} Bh3 {[%clk 00:00:25]} {[%emt 00:00:09]} 28. Qc2 {[%clk 00:01:44]}
{[%emt 00:00:17]} f5 {[%clk 00:00:14]} {[%emt 00:00:21]} 29. Qc6 {[%clk
00:01:25]} {[%emt 00:00:29]} Rf8 {[%clk 00:00:13]} {[%emt 00:00:12]} 30. Qd7
{[%clk 00:01:26]} {[%emt 00:00:09]} 1-0

[Event "Snabb-SM för veteraner, 50+ 2019"]
[Site "Schackcentrum, Vegagatan 20, Gothenburg, Sweden"]
[Date "2019.10.05"]
[Round "4.10"]
[White "Kappi, Marcus"]
[Black "Karlsson, Ulf"]
[Result "0-1"]
[TimeControl "15 minutes + 10 seconds per move from move one"]
[WhiteFideId "1762915"]
[BlackFideId "1721674"]
[WhiteElo "1387"]
[BlackElo "2035"]

1. e4 {[%clk 00:13:37]} {[%emt 00:00:30]} c5 {[%clk 00:15:15]} {[%emt
00:00:07]} 2. Bc4 {[%clk 00:13:45]} {[%emt 00:00:02]} e6 {[%clk 00:15:24]}
{[%emt 00:00:01]} 3. Nc3 {[%clk 00:13:49]} {[%emt 00:00:06]} a6 {[%clk
00:15:33]} 4. a4 {[%clk 00:13:41]} {[%emt 00:00:18]} Nc6 {[%clk 00:15:38]}
{[%emt 00:00:05]} 5. f4 {[%clk 00:13:34]} {[%emt 00:00:18]} d6 {[%clk
00:14:29]} {[%emt 00:01:19]} 6. Nf3 {[%clk 00:13:35]} {[%emt 00:00:08]} Nge7
{[%clk 00:14:01]} {[%emt 00:00:38]} 7. O-O {[%clk 00:13:26]} {[%emt 00:00:18]}
g6 {[%clk 00:13:36]} {[%emt 00:00:36]} 8. d3 {[%clk 00:13:29]} {[%emt
00:00:07]} Bg7 {[%clk 00:13:44]} {[%emt 00:00:02]} 9. Qe1 {[%clk 00:13:18]}
{[%emt 00:00:21]} Nd4 {[%clk 00:13:18]} {[%emt 00:00:36]} 10. Nxd4 {[%clk
00:12:21]} {[%emt 00:01:07]} cxd4 {[%clk 00:13:16]} {[%emt 00:00:12]} 11. Ne2
{[%clk 00:12:16]} {[%emt 00:00:14]} Bd7 {[%clk 00:13:24]} {[%emt 00:00:03]} 12.
Qg3 {[%clk 00:11:25]} {[%emt 00:01:01]} O-O {[%clk 00:12:54]} {[%emt 00:00:39]}
13. e5 {[%clk 00:10:46]} {[%emt 00:00:50]} Nf5 {[%clk 00:12:35]} {[%emt
00:00:30]} 14. Qf2 {[%clk 00:10:05]} {[%emt 00:00:50]} dxe5 {[%clk 00:12:38]}
{[%emt 00:00:08]} 15. fxe5 {[%clk 00:09:51]} {[%emt 00:00:23]} Bxe5 {[%clk
00:12:38]} {[%emt 00:00:10]} 16. Bf4 {[%clk 00:09:44]} {[%emt 00:00:17]} Bg7
{[%clk 00:11:20]} {[%emt 00:01:29]} 17. Rae1 {[%clk 00:09:34]} {[%emt
00:00:19]} Bxa4 {[%clk 00:10:23]} {[%emt 00:01:07]} 18. c3 {[%clk 00:09:32]}
{[%emt 00:00:13]} b5 {[%clk 00:09:15]} {[%emt 00:01:18]} 19. Ba2 {[%clk
00:09:20]} {[%emt 00:00:23]} Bc2 {[%clk 00:09:23]} {[%emt 00:00:02]} 20. Qf3
{[%clk 00:08:32]} {[%emt 00:00:58]} dxc3 {[%clk 00:09:26]} {[%emt 00:00:07]} 21.
Nxc3 {[%clk 00:07:58]} {[%emt 00:00:43]} Qxd3 {[%clk 00:09:25]} {[%emt
00:00:10]} 22. Bb1 {[%clk 00:05:51]} {[%emt 00:02:18]} Qxf3 {[%clk 00:09:08]}
{[%emt 00:00:27]} 23. Rxf3 {[%clk 00:05:46]} {[%emt 00:00:14]} Bxb1 {[%clk
00:09:11]} {[%emt 00:00:08]} 24. Rxb1 {[%clk 00:05:51]} {[%emt 00:00:05]} Rac8
{[%clk 00:08:58]} {[%emt 00:00:23]} 25. Rc1 {[%clk 00:04:58]} {[%emt 00:01:04]}
b4 {[%clk 00:08:53]} {[%emt 00:00:15]} 26. Ne4 {[%clk 00:04:47]} {[%emt
00:00:21]} Rxc1+ {[%clk 00:08:33]} {[%emt 00:00:29]} 27. Bxc1 {[%clk 00:04:52]}
{[%emt 00:00:05]} Rc8 {[%clk 00:08:41]} {[%emt 00:00:02]} 28. Rf1 {[%clk
00:04:14]} {[%emt 00:00:47]} Nd4 {[%clk 00:08:04]} {[%emt 00:00:48]} 29. Kh1
{[%clk 00:03:47]} {[%emt 00:00:37]} f5 {[%clk 00:07:52]} {[%emt 00:00:22]} 30.
Bg5 {[%clk 00:03:29]} {[%emt 00:00:28]} fxe4 {[%clk 00:07:45]} {[%emt
00:00:17]} 0-1

[Event "Snabb-SM för veteraner, 50+ 2019"]
[Site "Schackcentrum, Vegagatan 20, Gothenburg, Sweden"]
[Date "2019.10.05"]
[Round "4.11"]
[White "Bergre, Joachim"]
[Black "Skulason, Johann"]
[Result "1-0"]
[TimeControl "15 minutes + 10 seconds per move from move one"]
[WhiteFideId "1704893"]
[BlackFideId "1733915"]
[WhiteElo "2035"]
[BlackElo "1839"]

1. Nf3 {[%clk 00:15:14]} {[%emt 00:00:05]} f5 {[%clk 00:15:20]} {[%emt
00:00:02]} 2. d3 {[%clk 00:15:23]} Nf6 {[%clk 00:15:29]} {[%emt 00:00:01]} 3.
Nc3 {[%clk 00:15:32]} e6 {[%clk 00:15:38]} 4. e4 {[%clk 00:15:42]} d6 {[%clk
00:15:38]} {[%emt 00:00:11]} 5. exf5 {[%clk 00:15:11]} {[%emt 00:00:40]} exf5
{[%clk 00:15:09]} {[%emt 00:00:39]} 6. d4 {[%clk 00:14:52]} {[%emt 00:00:30]}
d5 {[%clk 00:15:11]} {[%emt 00:00:09]} 7. Ne5 {[%clk 00:14:31]} {[%emt
00:00:29]} Be7 {[%clk 00:15:07]} {[%emt 00:00:15]} 8. Bg5 {[%clk 00:13:09]}
{[%emt 00:01:31]} O-O {[%clk 00:15:14]} {[%emt 00:00:04]} 9. Bd3 {[%clk
00:12:46]} {[%emt 00:00:33]} c6 {[%clk 00:15:17]} {[%emt 00:00:07]} 10. O-O
{[%clk 00:12:45]} {[%emt 00:00:11]} Ne4 {[%clk 00:15:23]} {[%emt 00:00:04]} 11.
Bxe7 {[%clk 00:12:38]} {[%emt 00:00:17]} Qxe7 {[%clk 00:15:01]} {[%emt
00:00:32]} 12. Re1 {[%clk 00:12:21]} {[%emt 00:00:27]} Qh4 {[%clk 00:14:33]}
{[%emt 00:00:38]} 13. g3 {[%clk 00:10:51]} {[%emt 00:01:40]} Qf6 {[%clk
00:13:51]} {[%emt 00:00:53]} 14. f3 {[%clk 00:09:18]} {[%emt 00:01:43]} Ng5
{[%clk 00:13:01]} {[%emt 00:00:59]} 15. Bf1 {[%clk 00:09:03]} {[%emt 00:00:25]}
Nd7 {[%clk 00:11:40]} {[%emt 00:01:32]} 16. Bg2 {[%clk 00:08:35]} {[%emt
00:00:38]} f4 {[%clk 00:11:27]} {[%emt 00:00:23]} 17. g4 {[%clk 00:07:59]}
{[%emt 00:00:45]} Nxe5 {[%clk 00:10:23]} {[%emt 00:01:15]} 18. Rxe5 {[%clk
00:07:42]} {[%emt 00:00:27]} Nf7 {[%clk 00:10:05]} {[%emt 00:00:28]} 19. Re2
{[%clk 00:07:38]} {[%emt 00:00:14]} Nd6 {[%clk 00:10:12]} {[%emt 00:00:03]} 20.
b3 {[%clk 00:07:13]} {[%emt 00:00:35]} b6 {[%clk 00:07:59]} {[%emt 00:02:24]}
21. Qd2 {[%clk 00:06:58]} {[%emt 00:00:24]} Ba6 {[%clk 00:07:52]} {[%emt
00:00:17]} 22. Re5 {[%clk 00:07:05]} {[%emt 00:00:02]} Rae8 {[%clk 00:07:45]}
{[%emt 00:00:18]} 23. Rae1 {[%clk 00:07:13]} {[%emt 00:00:02]} Rxe5 {[%clk
00:06:56]} {[%emt 00:00:57]} 24. dxe5 {[%clk 00:07:20]} {[%emt 00:00:05]} Qg6
{[%clk 00:05:58]} {[%emt 00:01:08]} 25. exd6 {[%clk 00:07:23]} {[%emt
00:00:07]} Qxd6 {[%clk 00:06:06]} {[%emt 00:00:01]} 26. Qd4 {[%clk 00:07:07]}
{[%emt 00:00:26]} Bb7 {[%clk 00:05:45]} {[%emt 00:00:32]} 27. Na4 {[%clk
00:06:29]} {[%emt 00:00:47]} c5 {[%clk 00:05:50]} {[%emt 00:00:05]} 28. Qe5
{[%clk 00:06:36]} {[%emt 00:00:03]} Qd8 {[%clk 00:05:20]} {[%emt 00:00:40]} 29.
Qe6+ {[%clk 00:06:34]} {[%emt 00:00:12]} Kh8 {[%clk 00:05:29]} {[%emt
00:00:02]} 30. Qe7 {[%clk 00:06:37]} {[%emt 00:00:06]} d4 {[%clk 00:05:31]}
{[%emt 00:00:08]} 31. Qxd8 Rxd8 {[%clk 00:05:40]} 32. Nb2 {[%clk 00:06:40]}
{[%emt 00:00:05]} b5 {[%clk 00:05:49]} {[%emt 00:00:01]} 33. Re7 {[%clk
00:06:47]} {[%emt 00:00:03]} Bd5 {[%clk 00:05:42]} {[%emt 00:00:17]} 34. Nd3
{[%clk 00:06:16]} {[%emt 00:00:41]} c4 {[%clk 00:05:44]} {[%emt 00:00:08]} 35.
bxc4 {[%clk 00:06:08]} {[%emt 00:00:19]} bxc4 {[%clk 00:05:40]} {[%emt
00:00:14]} 36. Nxf4 {[%clk 00:06:16]} {[%emt 00:00:02]} g5 {[%clk 00:05:37]}
{[%emt 00:00:12]} 37. Nh5 {[%clk 00:06:13]} {[%emt 00:00:12]} d3 {[%clk
00:05:38]} {[%emt 00:00:10]} 38. Nf6 {[%clk 00:06:19]} {[%emt 00:00:04]} Bg8
{[%clk 00:05:44]} {[%emt 00:00:04]} 39. cxd3 {[%clk 00:06:19]} {[%emt
00:00:10]} cxd3 {[%clk 00:05:38]} {[%emt 00:00:16]} 40. Bf1 {[%clk 00:05:27]}
{[%emt 00:01:01]} d2 {[%clk 00:05:45]} {[%emt 00:00:03]} 41. Be2 {[%clk
00:05:35]} {[%emt 00:00:02]} d1=Q+ {[%clk 00:05:51]} {[%emt 00:00:04]} 42. Bxd1
{[%clk 00:05:44]} Rxd1+ {[%clk 00:05:59]} {[%emt 00:00:02]} 43. Kf2 {[%clk
00:05:53]} Rd2+ {[%clk 00:05:39]} {[%emt 00:00:31]} 44. Kg3 {[%clk 00:05:45]}
{[%emt 00:00:18]} Rd6 {[%clk 00:05:25]} {[%emt 00:00:24]} 45. Nxg8 {[%clk
00:05:43]} {[%emt 00:00:12]} Kxg8 {[%clk 00:05:34]} 46. Rxa7 {[%clk 00:05:51]}
{[%emt 00:00:02]} 1-0